Workbook

Sheet READ THIS - DESTRUCTIONS
A1: BILL STARR 5x5
E2: A Base Version for Novice to Intermediate Lifters
E3: Linear Pre-Periodization by MadCow
A4: Click Here for Table of Contents | F4: Violent Zen™ Version 0.5
D5: www.ViolentZen.com
A13: >>>> Click Here to watch the UPDATED Version 0.5 Video Instructions
A14: Click Here to watch the ORIGINAL video instructions <<<<
A15: >>>> Click Here to GET NOTIFIED when/if this spreadsheet is Updated
A16: Introduction:
A18: Link to Program Description from MadCow
A20: This program is a template designed to match the program description linked above.
A21: It is not intended as a stand-alone, this is all just some raw estimation that would give a general trainee
A22: with a few years of experience a look at how the weights might be arranged. In reality he will
A23: be estimating and resestimating as he runs through the program to peak everything at the right time.
A24: Obviously, given that this is all very general, someone who does this program even once will be able to set
A25: themseleves up much better in the future using even very limited experience, their brain, and a pencil rather
A26: than hoping all the assumptions I made here actually work for them. Hopefully that's clear.
A28: I will also note that this is not a 9 week program, you continue making increases for as long as you are
A29: able to. If you read the Program Description, you already know that. I only included 9 weeks to make this simple
A30: and compact. It's meant to sketch out the program and clarify the progression and is not meant
A31: as a substitute for 5 minutes of reading. If you are investing yourself in this program over a series of weeks and
A32: care about your progress, it likely makes sense to read the damn description and make sure you have it right.
A34: Instructions:
A36: Only change yellow cells. Do not alter the Tonnage Calc worksheet.
A38: Test Weight and Reps Achieved is to help you calculate your single rep max and 5 rep max.
A39: These estimats are more accurate with lower rep tests and lifters who train using lower reps
A40: i.e. testing with a set of 12 and a lifter who is typically used to 10-15 reps is going to decrease accuracy.
A42: Set Interval is the percent change between sets based on the top set of the day for a given exercise.
A43: The lower this value the less space between sets (i.e. higher workload and more density) the greater
A44: the possibility of fatiguing too soon and limiting progress (i.e. fewer weeks of progression or too weak for high performance on top sets)
A46: Tonnage is calculated based on core lifts, it is the combined sum of volume and intensity (%1RM). Basically a proxy for workload.
A47: i.e. Weight Used X Reps = Tonnage. The cutoff is to make the calculation more relevant and not count light sets
A48: towards the total since the impact from very light work is not going to be significant (this is common in practice)
A50: Obviously most people will need to round the weights. If you want to train by percents and be more precise with weight
A51: selection than 5lbs incriments (i.e. two 2.5lbs plates), maybe look into microplates or even this really innovative/inexpensive
A52: microchain solution. Unfortunately, this is more a problem for weaker/newer lifters as a given % of a small lift is inherently smaller.
A53: Microloading and Fractional Plates Info from MadCow | F53: Cheap Microloading Technique from Violent Zen™
... 1 more rows

Sheet Assistance Work
A1: --- Lower ---
A2: Front Squat
A3: GM (Standing)
A4: GM (Dead)
A5: GM (Seated)
A6: Dbell Lunges
A7: Barbell Lunges
A8: Leg Curl
A9: Leg Ext
A10: Hip Thrusts
A11: Farmer Walk
A12: Back Extension
A13: Romanian Deads
A14: Stiff Leg Deads
A15: Glute Ham Raise
A16: Reverse Hyper
A17: Hip Thrusts
A18: Farmer Walk
A24: --- Upper ---
A25: Incline Bench
A26: Dbell Inc Bench
A27: Cable Flyes
A28: Dbell Flyes
A29: Wide Dips
A30: Close Grip Bench
A31: Wide Upright Row
A32: Face Pulls
A33: Shrugs
A34: Overhand BB Curl
A35: Hammer Curl
A36: EZ Bar Curl
A37: JM Press
A38: French Press
A39: Skull Crushers
A40: Close Grip Dips

Sheet Weeks 1-4 (Single Factor)
A1: Bill Starr Intermediate 5x5 (Madcow Version) - No Rounding | H1: www.ViolentZen.com
B2: Test Weight | C2: Reps (<12) | D2: 1RM | E2: 5RM
A3: Squat | B3: 315 | C3: 5 | D3: =(B3)/(1.0278-(0.0278*C3)) -> 354.410441 | E3: =D3*(1.0278-(0.0278*5)) -> 315 | G3: Set Interval | I3: 0.125 | J3: Usually 10-15%
A4: Bench | B4: 225 | C4: 5 | D4: =(B4)/(1.0278-(0.0278*C4)) -> 253.150315 | E4: =D4*(1.0278-(0.0278*5)) -> 225 | J4: Given % of Single Rep Max for Inclusion in Relevant Tonnage
A5: Row | B5: 205 | C5: 5 | D5: =(B5)/(1.0278-(0.0278*C5)) -> 230.6480648 | E5: =D5*(1.0278-(0.0278*5)) -> 205 | G5: Tonnage Cutoff | I5: 0.6
A6: Dead | B6: 315 | C6: 5 | D6: =(B6)/(1.0278-(0.0278*C6)) -> 354.410441 | E6: =D6*(1.0278-(0.0278*5)) -> 315
A7: Incline | B7: 185 | C7: 5 | D7: =(B7)/(1.0278-(0.0278*C7)) -> 208.1458146 | E7: =D7*(1.0278-(0.0278*5)) -> 185
A9: Day | B9: Exercise | C9: Reps | D9: Wk 1 | F9: Wk 2 | H9: Wk 3 | J9: Wk 4
A10: Monday | B10: Squat | C10: 5 | D10: =D$14*(1-4*$I$3) -> 145.9803516 | F10: =F$14*(1-4*$I$3) -> 149.7234375 | H10: =H$14*(1-4*$I$3) -> 153.5625 | J10: =J$14*(1-4*$I$3) -> 157.5
C11: 5 | D11: =D$14*(1-3*$I$3) -> 182.4754395 | F11: =F$14*(1-3*$I$3) -> 187.1542969 | H11: =H$14*(1-3*$I$3) -> 191.953125 | J11: =J$14*(1-3*$I$3) -> 196.875
C12: 5 | D12: =D$14*(1-2*$I$3) -> 218.9705273 | F12: =F$14*(1-2*$I$3) -> 224.5851562 | H12: =H$14*(1-2*$I$3) -> 230.34375 | J12: =J$14*(1-2*$I$3) -> 236.25
C13: 5 | D13: =D$14*(1-$I$3) -> 255.4656152 | F13: =F$14*(1-$I$3) -> 262.0160156 | H13: =H$14*(1-$I$3) -> 268.734375 | J13: =J$14*(1-$I$3) -> 275.625
C14: 5 | D14: =F14*0.975 -> 291.9607031 | F14: =H14*0.975 -> 299.446875 | H14: =J14*0.975 -> 307.125 | J14: =E3 -> 315
B15: Bench | C15: 5 | D15: =D$19*(1-4*$I$3) -> 104.2716797 | F15: =F$19*(1-4*$I$3) -> 106.9453125 | H15: =H$19*(1-4*$I$3) -> 109.6875 | J15: =J$19*(1-4*$I$3) -> 112.5
C16: 5 | D16: =D$19*(1-3*$I$3) -> 130.3395996 | F16: =F$19*(1-3*$I$3) -> 133.6816406 | H16: =H$19*(1-3*$I$3) -> 137.109375 | J16: =J$19*(1-3*$I$3) -> 140.625
C17: 5 | D17: =D$19*(1-2*$I$3) -> 156.4075195 | F17: =F$19*(1-2*$I$3) -> 160.4179688 | H17: =H$19*(1-2*$I$3) -> 164.53125 | J17: =J$19*(1-2*$I$3) -> 168.75
C18: 5 | D18: =D$19*(1-$I$3) -> 182.4754395 | F18: =F$19*(1-$I$3) -> 187.1542969 | H18: =H$19*(1-$I$3) -> 191.953125 | J18: =J$19*(1-$I$3) -> 196.875
C19: 5 | D19: =F19*0.975 -> 208.5433594 | F19: =H19*0.975 -> 213.890625 | H19: =J19*0.975 -> 219.375 | J19: =E4 -> 225
B20: Bent Rows | C20: 5 | D20: =D$24*(1-4*$I$3) -> 95.00308594 | F20: =F$24*(1-4*$I$3) -> 97.4390625 | H20: =H$24*(1-4*$I$3) -> 99.9375 | J20: =J$24*(1-4*$I$3) -> 102.5
C21: 5 | D21: =D$24*(1-3*$I$3) -> 118.7538574 | F21: =F$24*(1-3*$I$3) -> 121.7988281 | H21: =H$24*(1-3*$I$3) -> 124.921875 | J21: =J$24*(1-3*$I$3) -> 128.125
C22: 5 | D22: =D$24*(1-2*$I$3) -> 142.5046289 | F22: =F$24*(1-2*$I$3) -> 146.1585937 | H22: =H$24*(1-2*$I$3) -> 149.90625 | J22: =J$24*(1-2*$I$3) -> 153.75
C23: 5 | D23: =D$24*(1-$I$3) -> 166.2554004 | F23: =F$24*(1-$I$3) -> 170.5183594 | H23: =H$24*(1-$I$3) -> 174.890625 | J23: =J$24*(1-$I$3) -> 179.375
C24: 5 | D24: =F24*0.975 -> 190.0061719 | F24: =H24*0.975 -> 194.878125 | H24: =J24*0.975 -> 199.875 | J24: =E5 -> 205
B25: Assistance | C25: 3x8
B26: Assistance | C26: 3x8
A28: Wednesday | B28: Squat | C28: 5 | D28: =D10 -> 145.9803516 | F28: 149.7234375 | H28: 153.5625 | J28: 157.5
C29: 5 | D29: 182.4754395 | F29: 187.1542969 | H29: 191.953125 | J29: 196.875
C30: 5 | D30: 218.9705273 | F30: 224.5851562 | H30: 230.34375 | J30: 236.25
C31: 5 | D31: =D30 -> 218.9705273 | F31: =F30 -> 224.5851562 | H31: =H30 -> 230.34375 | J31: =J30 -> 236.25
B32: Incline Bench | C32: 5 | D32: =D$35*(1-3*$I$3) -> 107.1681152 | F32: =F$35*(1-3*$I$3) -> 109.9160156 | H32: =H$35*(1-3*$I$3) -> 112.734375 | J32: =J$35*(1-3*$I$3) -> 115.625
C33: 5 | D33: =D$35*(1-2*$I$3) -> 128.6017383 | F33: =F$35*(1-2*$I$3) -> 131.8992187 | H33: =H$35*(1-2*$I$3) -> 135.28125 | J33: =J$35*(1-2*$I$3) -> 138.75
C34: 5 | D34: =D$35*(1-$I$3) -> 150.0353613 | F34: =F$35*(1-$I$3) -> 153.8824219 | H34: =H$35*(1-$I$3) -> 157.828125 | J34: =J$35*(1-$I$3) -> 161.875
C35: 5 | D35: =F35*0.975 -> 171.4689844 | F35: =H35*0.975 -> 175.865625 | H35: =J35*0.975 -> 180.375 | J35: =E7 -> 185
B36: Deadlift | C36: 5 | D36: =D$39*(1-3*$I$3) -> 182.4754395 | F36: =F$39*(1-3*$I$3) -> 187.1542969 | H36: =H$39*(1-3*$I$3) -> 191.953125 | J36: =J$39*(1-3*$I$3) -> 196.875
C37: 5 | D37: =D$39*(1-2*$I$3) -> 218.9705273 | F37: =F$39*(1-2*$I$3) -> 224.5851562 | H37: =H$39*(1-2*$I$3) -> 230.34375 | J37: =J$39*(1-2*$I$3) -> 236.25
C38: 5 | D38: =D$39*(1-$I$3) -> 255.4656152 | F38: =F$39*(1-$I$3) -> 262.0160156 | H38: =H$39*(1-$I$3) -> 268.734375 | J38: =J$39*(1-$I$3) -> 275.625
C39: 5 | D39: =F39*0.975 -> 291.9607031 | F39: =H39*0.975 -> 299.446875 | H39: =J39*0.975 -> 307.125 | J39: =E6 -> 315
B40: Assistance | C40: 3x8
B41: Assistance | C41: 3x8
A43: Friday | B43: Squat | C43: 5 | D43: =D10 -> 145.9803516 | F43: 149.7234375 | H43: 153.5625 | J43: 157.5
C44: 5 | D44: 182.4754395 | F44: 187.1542969 | H44: 191.953125 | J44: 196.875
C45: 5 | D45: 218.9705273 | F45: 224.5851562 | H45: 230.34375 | J45: 236.25
C46: 5 | D46: 255.4656152 | F46: 262.0160156 | H46: 268.734375 | J46: 275.625
C47: 3 | D47: =D14*1.025 -> 299.2597207 | F47: =F14*1.025 -> 306.9330469 | H47: =H14*1.025 -> 314.803125 | J47: =J14*1.025 -> 322.875
C48: 8 | D48: =D45 -> 218.9705273 | F48: =F45 -> 224.5851562 | H48: =H45 -> 230.34375 | J48: =J45 -> 236.25
B49: Bench | C49: 5 | D49: =D15 -> 104.2716797 | F49: 106.9453125 | H49: 109.6875 | J49: 112.5
C50: 5 | D50: 130.3395996 | F50: 133.6816406 | H50: 137.109375 | J50: 140.625
C51: 5 | D51: 156.4075195 | F51: 160.4179688 | H51: 164.53125 | J51: 168.75
C52: 5 | D52: 182.4754395 | F52: 187.1542969 | H52: 191.953125 | J52: 196.875
C53: 3 | D53: =D19*1.025 -> 213.7569434 | F53: =F19*1.025 -> 219.2378906 | H53: =H19*1.025 -> 224.859375 | J53: =J19*1.025 -> 230.625
C54: 8 | D54: =D51 -> 156.4075195 | F54: =F51 -> 160.4179688 | H54: =H51 -> 164.53125 | J54: =J51 -> 168.75
B55: Bent Rows | C55: 5 | D55: =D20 -> 95.00308594 | F55: 97.4390625 | H55: 99.9375 | J55: 102.5
C56: 5 | D56: 118.7538574 | F56: 121.7988281 | H56: 124.921875 | J56: 128.125
C57: 5 | D57: 142.5046289 | F57: 146.1585937 | H57: 149.90625 | J57: 153.75
C58: 5 | D58: 166.2554004 | F58: 170.5183594 | H58: 174.890625 | J58: 179.375
C59: 3 | D59: =D24*1.025 -> 194.7563262 | F59: =F24*1.025 -> 199.7500781 | H59: =H24*1.025 -> 204.871875 | J59: =J24*1.025 -> 210.125
C60: 8 | D60: =D57 -> 142.5046289 | F60: =F57 -> 146.1585937 | H60: =H57 -> 149.90625 | J60: =J57 -> 153.75
B61: Assistance | C61: 3x8
B62: Assistance | C62: 3x8
A64: Tonnage: | D64: Wk 1 | F64: Wk 2 | H64: Wk 3 | J64: Wk 4
A65: Core Exercise Tonnage | C65: Mon | D65: =SUMPRODUCT($C$10:$C$24,D10:D24) -> 12947.06689 | F65: =SUMPRODUCT($C$10:$C$24,F10:F24) -> 13279.04297 | H65: =SUMPRODUCT($C$10:$C$24,H10:H24) -> 13619.53125 | J65: =SUMPRODUCT($C$10:$C$24,J10:J24) -> 13968.75
C66: Wed | D66: =SUMPRODUCT($C$28:$C$39,D28:D39) -> 11362.71665 | F66: =SUMPRODUCT($C$28:$C$39,F28:F39) -> 11654.06836 | H66: =SUMPRODUCT($C$28:$C$39,H28:H39) -> 11952.89062 | J66: =SUMPRODUCT($C$28:$C$39,J28:J39) -> 12259.375
C67: Fri | D67: =SUMPRODUCT($C$43:$C$60,D43:D60) -> 15760.8961 | F67: =SUMPRODUCT($C$43:$C$60,F43:F60) -> 16165.02164 | H67: =SUMPRODUCT($C$43:$C$60,H43:H60) -> 16579.50938 | J67: =SUMPRODUCT($C$43:$C$60,J43:J60) -> 17004.625
C68: Weekly | D68: =SUM(D65:D67) -> 40070.67964 | F68: =SUM(F65:F67) -> 41098.13297 | H68: =SUM(H65:H67) -> 42151.93125 | J68: =SUM(J65:J67) -> 43232.75
A69: Tonnage w/Significance Cutoff | C69: Mon | D69: ='Tonnage Calc (do not change)'!D73 -> 9062.946826 | F69: ='Tonnage Calc (do not change)'!E73 -> 9295.330078 | H69: ='Tonnage Calc (do not change)'!F73 -> 9533.671875 | J69: ='Tonnage Calc (do not change)'!G73 -> 9778.125
C70: Wed | D70: ='Tonnage Calc (do not change)'!D74 -> 8272.219922 | F70: ='Tonnage Calc (do not change)'!E74 -> 8484.328125 | H70: ='Tonnage Calc (do not change)'!F74 -> 8701.875 | J70: ='Tonnage Calc (do not change)'!G74 -> 8925
C71: Fri | D71: ='Tonnage Calc (do not change)'!D75 -> 11876.77603 | F71: ='Tonnage Calc (do not change)'!E75 -> 12181.30875 | H71: ='Tonnage Calc (do not change)'!F75 -> 12493.65 | J71: ='Tonnage Calc (do not change)'!G75 -> 12814
C72: Weekly | D72: =SUM(D69:D71) -> 29211.94278 | F72: =SUM(F69:F71) -> 29960.96695 | H72: =SUM(H69:H71) -> 30729.19688 | J72: =SUM(J69:J71) -> 31517.125

Sheet Weeks 5-9 (Single Factor)
A1: www.ViolentZen.com
A2: NOTICE >>> | C2: INPUTS ARE TAKEN FROM TAB "Weeks 1-4 (Single Factor)
C3: You can modify assistance work in light yellow if you want.
A4: Day | B4: Exercise | C4: Reps | D4: Wk 5 | F4: Wk 6 | H4: Wk 7 | J4: Wk 8 | L4: Wk 9
A5: ='Weeks 1-4 (Single Factor)'!A10 -> Monday | B5: Squat | C5: 5 | D5: =D$9*(1-4*'Weeks 1-4 (Single Factor)'!$I$3) -> 161.4375 | F5: =F$9*(1-4*'Weeks 1-4 (Single Factor)'!$I$3) -> 165.4734375 | H5: =H$9*(1-4*'Weeks 1-4 (Single Factor)'!$I$3) -> 169.6102734 | J5: =J$9*(1-4*'Weeks 1-4 (Single Factor)'!$I$3) -> 173.8505303 | L5: =L$9*(1-4*'Weeks 1-4 (Single Factor)'!$I$3) -> 178.1967935
C6: 5 | D6: =D$9*(1-3*'Weeks 1-4 (Single Factor)'!$I$3) -> 201.796875 | F6: =F$9*(1-3*'Weeks 1-4 (Single Factor)'!$I$3) -> 206.8417969 | H6: =H$9*(1-3*'Weeks 1-4 (Single Factor)'!$I$3) -> 212.0128418 | J6: =J$9*(1-3*'Weeks 1-4 (Single Factor)'!$I$3) -> 217.3131628 | L6: =L$9*(1-3*'Weeks 1-4 (Single Factor)'!$I$3) -> 222.7459919
C7: 5 | D7: =D$9*(1-2*'Weeks 1-4 (Single Factor)'!$I$3) -> 242.15625 | F7: =F$9*(1-2*'Weeks 1-4 (Single Factor)'!$I$3) -> 248.2101562 | H7: =H$9*(1-2*'Weeks 1-4 (Single Factor)'!$I$3) -> 254.4154102 | J7: =J$9*(1-2*'Weeks 1-4 (Single Factor)'!$I$3) -> 260.7757954 | L7: =L$9*(1-2*'Weeks 1-4 (Single Factor)'!$I$3) -> 267.2951903
C8: 5 | D8: =D$9*(1-'Weeks 1-4 (Single Factor)'!$I$3) -> 282.515625 | F8: =F$9*(1-'Weeks 1-4 (Single Factor)'!$I$3) -> 289.5785156 | H8: =H$9*(1-'Weeks 1-4 (Single Factor)'!$I$3) -> 296.8179785 | J8: =J$9*(1-'Weeks 1-4 (Single Factor)'!$I$3) -> 304.238428 | L8: =L$9*(1-'Weeks 1-4 (Single Factor)'!$I$3) -> 311.8443887
C9: 5 | D9: ='Weeks 1-4 (Single Factor)'!J14*1.025 -> 322.875 | F9: =D9*1.025 -> 330.946875 | H9: =F9*1.025 -> 339.2205469 | J9: =H9*1.025 -> 347.7010605 | L9: =J9*1.025 -> 356.3935871
B10: Bench | C10: 5 | D10: =D$14*(1-4*'Weeks 1-4 (Single Factor)'!$I$3) -> 115.3125 | F10: =F$14*(1-4*'Weeks 1-4 (Single Factor)'!$I$3) -> 118.1953125 | H10: =H$14*(1-4*'Weeks 1-4 (Single Factor)'!$I$3) -> 121.1501953 | J10: =J$14*(1-4*'Weeks 1-4 (Single Factor)'!$I$3) -> 124.1789502 | L10: =L$14*(1-4*'Weeks 1-4 (Single Factor)'!$I$3) -> 127.283424
C11: 5 | D11: =D$14*(1-3*'Weeks 1-4 (Single Factor)'!$I$3) -> 144.140625 | F11: =F$14*(1-3*'Weeks 1-4 (Single Factor)'!$I$3) -> 147.7441406 | H11: =H$14*(1-3*'Weeks 1-4 (Single Factor)'!$I$3) -> 151.4377441 | J11: =J$14*(1-3*'Weeks 1-4 (Single Factor)'!$I$3) -> 155.2236877 | L11: =L$14*(1-3*'Weeks 1-4 (Single Factor)'!$I$3) -> 159.1042799
C12: 5 | D12: =D$14*(1-2*'Weeks 1-4 (Single Factor)'!$I$3) -> 172.96875 | F12: =F$14*(1-2*'Weeks 1-4 (Single Factor)'!$I$3) -> 177.2929687 | H12: =H$14*(1-2*'Weeks 1-4 (Single Factor)'!$I$3) -> 181.725293 | J12: =J$14*(1-2*'Weeks 1-4 (Single Factor)'!$I$3) -> 186.2684253 | L12: =L$14*(1-2*'Weeks 1-4 (Single Factor)'!$I$3) -> 190.9251359
C13: 5 | D13: =D$14*(1-'Weeks 1-4 (Single Factor)'!$I$3) -> 201.796875 | F13: =F$14*(1-'Weeks 1-4 (Single Factor)'!$I$3) -> 206.8417969 | H13: =H$14*(1-'Weeks 1-4 (Single Factor)'!$I$3) -> 212.0128418 | J13: =J$14*(1-'Weeks 1-4 (Single Factor)'!$I$3) -> 217.3131628 | L13: =L$14*(1-'Weeks 1-4 (Single Factor)'!$I$3) -> 222.7459919
C14: 5 | D14: ='Weeks 1-4 (Single Factor)'!J19*1.025 -> 230.625 | F14: =D14*1.025 -> 236.390625 | H14: =F14*1.025 -> 242.3003906 | J14: =H14*1.025 -> 248.3579004 | L14: =J14*1.025 -> 254.5668479
B15: Bent Rows | C15: 5 | D15: =D$19*(1-4*'Weeks 1-4 (Single Factor)'!$I$3) -> 105.0625 | F15: =F$19*(1-4*'Weeks 1-4 (Single Factor)'!$I$3) -> 107.6890625 | H15: =H$19*(1-4*'Weeks 1-4 (Single Factor)'!$I$3) -> 110.3812891 | J15: =J$19*(1-4*'Weeks 1-4 (Single Factor)'!$I$3) -> 113.1408213 | L15: =L$19*(1-4*'Weeks 1-4 (Single Factor)'!$I$3) -> 115.9693418
C16: 5 | D16: =D$19*(1-3*'Weeks 1-4 (Single Factor)'!$I$3) -> 131.328125 | F16: =F$19*(1-3*'Weeks 1-4 (Single Factor)'!$I$3) -> 134.6113281 | H16: =H$19*(1-3*'Weeks 1-4 (Single Factor)'!$I$3) -> 137.9766113 | J16: =J$19*(1-3*'Weeks 1-4 (Single Factor)'!$I$3) -> 141.4260266 | L16: =L$19*(1-3*'Weeks 1-4 (Single Factor)'!$I$3) -> 144.9616773
C17: 5 | D17: =D$19*(1-2*'Weeks 1-4 (Single Factor)'!$I$3) -> 157.59375 | F17: =F$19*(1-2*'Weeks 1-4 (Single Factor)'!$I$3) -> 161.5335937 | H17: =H$19*(1-2*'Weeks 1-4 (Single Factor)'!$I$3) -> 165.5719336 | J17: =J$19*(1-2*'Weeks 1-4 (Single Factor)'!$I$3) -> 169.7112319 | L17: =L$19*(1-2*'Weeks 1-4 (Single Factor)'!$I$3) -> 173.9540127
C18: 5 | D18: =D$19*(1-'Weeks 1-4 (Single Factor)'!$I$3) -> 183.859375 | F18: =F$19*(1-'Weeks 1-4 (Single Factor)'!$I$3) -> 188.4558594 | H18: =H$19*(1-'Weeks 1-4 (Single Factor)'!$I$3) -> 193.1672559 | J18: =J$19*(1-'Weeks 1-4 (Single Factor)'!$I$3) -> 197.9964373 | L18: =L$19*(1-'Weeks 1-4 (Single Factor)'!$I$3) -> 202.9463482
C19: 5 | D19: ='Weeks 1-4 (Single Factor)'!J24*1.025 -> 210.125 | F19: =D19*1.025 -> 215.378125 | H19: =F19*1.025 -> 220.7625781 | J19: =H19*1.025 -> 226.2816426 | L19: =J19*1.025 -> 231.9386836
B20: Assistance | C20: ='Weeks 1-4 (Single Factor)'!C25 -> 3x8
B21: Assistance | C21: ='Weeks 1-4 (Single Factor)'!C26 -> 3x8
A23: ='Weeks 1-4 (Single Factor)'!A28 -> Wednesday | B23: Squat | C23: 5 | D23: =D5 -> 161.4375 | F23: 165.4734375 | H23: 169.6102734 | J23: 173.8505303 | L23: 178.1967935
C24: 5 | D24: 201.796875 | F24: 206.8417969 | H24: 212.0128418 | J24: 217.3131628 | L24: 222.7459919
C25: 5 | D25: 242.15625 | F25: 248.2101562 | H25: 254.4154102 | J25: 260.7757954 | L25: 267.2951903
C26: 5 | D26: =D25 -> 242.15625 | F26: =F25 -> 248.2101562 | H26: =H25 -> 254.4154102 | J26: =J25 -> 260.7757954 | L26: =L25 -> 267.2951903
B27: Incline Bench | C27: 5 | D27: =D$30*(1-3*'Weeks 1-4 (Single Factor)'!$I$3) -> 118.515625 | F27: =F$30*(1-3*'Weeks 1-4 (Single Factor)'!$I$3) -> 121.4785156 | H27: =H$30*(1-3*'Weeks 1-4 (Single Factor)'!$I$3) -> 124.5154785 | J27: =J$30*(1-3*'Weeks 1-4 (Single Factor)'!$I$3) -> 127.6283655 | L27: =L$30*(1-3*'Weeks 1-4 (Single Factor)'!$I$3) -> 130.8190746
C28: 5 | D28: =D$30*(1-2*'Weeks 1-4 (Single Factor)'!$I$3) -> 142.21875 | F28: =F$30*(1-2*'Weeks 1-4 (Single Factor)'!$I$3) -> 145.7742187 | H28: =H$30*(1-2*'Weeks 1-4 (Single Factor)'!$I$3) -> 149.4185742 | J28: =J$30*(1-2*'Weeks 1-4 (Single Factor)'!$I$3) -> 153.1540386 | L28: =L$30*(1-2*'Weeks 1-4 (Single Factor)'!$I$3) -> 156.9828895
C29: 5 | D29: =D$30*(1-'Weeks 1-4 (Single Factor)'!$I$3) -> 165.921875 | F29: =F$30*(1-'Weeks 1-4 (Single Factor)'!$I$3) -> 170.0699219 | H29: =H$30*(1-'Weeks 1-4 (Single Factor)'!$I$3) -> 174.3216699 | J29: =J$30*(1-'Weeks 1-4 (Single Factor)'!$I$3) -> 178.6797117 | L29: =L$30*(1-'Weeks 1-4 (Single Factor)'!$I$3) -> 183.1467045
C30: 5 | D30: ='Weeks 1-4 (Single Factor)'!J35*1.025 -> 189.625 | F30: =D30*1.025 -> 194.365625 | H30: =F30*1.025 -> 199.2247656 | J30: =H30*1.025 -> 204.2053848 | L30: =J30*1.025 -> 209.3105194
B31: Deadlift | C31: 5 | D31: =D$34*(1-3*'Weeks 1-4 (Single Factor)'!$I$3) -> 201.796875 | F31: =F$34*(1-3*'Weeks 1-4 (Single Factor)'!$I$3) -> 206.8417969 | H31: =H$34*(1-3*'Weeks 1-4 (Single Factor)'!$I$3) -> 212.0128418 | J31: =J$34*(1-3*'Weeks 1-4 (Single Factor)'!$I$3) -> 217.3131628 | L31: =L$34*(1-3*'Weeks 1-4 (Single Factor)'!$I$3) -> 222.7459919
C32: 5 | D32: =D$34*(1-2*'Weeks 1-4 (Single Factor)'!$I$3) -> 242.15625 | F32: =F$34*(1-2*'Weeks 1-4 (Single Factor)'!$I$3) -> 248.2101562 | H32: =H$34*(1-2*'Weeks 1-4 (Single Factor)'!$I$3) -> 254.4154102 | J32: =J$34*(1-2*'Weeks 1-4 (Single Factor)'!$I$3) -> 260.7757954 | L32: =L$34*(1-2*'Weeks 1-4 (Single Factor)'!$I$3) -> 267.2951903
C33: 5 | D33: =D$34*(1-'Weeks 1-4 (Single Factor)'!$I$3) -> 282.515625 | F33: =F$34*(1-'Weeks 1-4 (Single Factor)'!$I$3) -> 289.5785156 | H33: =H$34*(1-'Weeks 1-4 (Single Factor)'!$I$3) -> 296.8179785 | J33: =J$34*(1-'Weeks 1-4 (Single Factor)'!$I$3) -> 304.238428 | L33: =L$34*(1-'Weeks 1-4 (Single Factor)'!$I$3) -> 311.8443887
C34: 5 | D34: ='Weeks 1-4 (Single Factor)'!J39*1.025 -> 322.875 | F34: =D34*1.025 -> 330.946875 | H34: =F34*1.025 -> 339.2205469 | J34: =H34*1.025 -> 347.7010605 | L34: =J34*1.025 -> 356.3935871
B35: Assistance | C35: ='Weeks 1-4 (Single Factor)'!C40 -> 3x8
B36: Assistance | C36: ='Weeks 1-4 (Single Factor)'!C41 -> 3x8
A38: ='Weeks 1-4 (Single Factor)'!A43 -> Friday | B38: Squat | C38: 5 | D38: =D5 -> 161.4375 | F38: 165.4734375 | H38: 169.6102734 | J38: 173.8505303 | L38: 178.1967935
C39: 5 | D39: 201.796875 | F39: 206.8417969 | H39: 212.0128418 | J39: 217.3131628 | L39: 222.7459919
C40: 5 | D40: 242.15625 | F40: 248.2101562 | H40: 254.4154102 | J40: 260.7757954 | L40: 267.2951903
C41: 5 | D41: 282.515625 | F41: 289.5785156 | H41: 296.8179785 | J41: 304.238428 | L41: 311.8443887
C42: 3 | D42: =D9*1.025 -> 330.946875 | F42: =F9*1.025 -> 339.2205469 | H42: =H9*1.025 -> 347.7010605 | J42: =J9*1.025 -> 356.3935871 | L42: =L9*1.025 -> 365.3034267
C43: 8 | D43: =D40 -> 242.15625 | F43: =F40 -> 248.2101562 | H43: =H40 -> 254.4154102 | J43: =J40 -> 260.7757954 | L43: =L40 -> 267.2951903
B44: Bench | C44: 5 | D44: =D10 -> 115.3125 | F44: 118.1953125 | H44: 121.1501953 | J44: 124.1789502 | L44: 127.283424
C45: 5 | D45: 144.140625 | F45: 147.7441406 | H45: 151.4377441 | J45: 155.2236877 | L45: 159.1042799
C46: 5 | D46: 172.96875 | F46: 177.2929687 | H46: 181.725293 | J46: 186.2684253 | L46: 190.9251359
C47: 5 | D47: 201.796875 | F47: 206.8417969 | H47: 212.0128418 | J47: 217.3131628 | L47: 222.7459919
C48: 3 | D48: =D14*1.025 -> 236.390625 | F48: =F14*1.025 -> 242.3003906 | H48: =H14*1.025 -> 248.3579004 | J48: =J14*1.025 -> 254.5668479 | L48: =L14*1.025 -> 260.9310191
C49: 8 | D49: =D46 -> 172.96875 | F49: =F46 -> 177.2929687 | H49: =H46 -> 181.725293 | J49: =J46 -> 186.2684253 | L49: =L46 -> 190.9251359
B50: Bent Rows | C50: 5 | D50: =D15 -> 105.0625 | F50: 107.6890625 | H50: 110.3812891 | J50: 113.1408213 | L50: 115.9693418
C51: 5 | D51: 131.328125 | F51: 134.6113281 | H51: 137.9766113 | J51: 141.4260266 | L51: 144.9616773
C52: 5 | D52: 157.59375 | F52: 161.5335937 | H52: 165.5719336 | J52: 169.7112319 | L52: 173.9540127
C53: 5 | D53: 183.859375 | F53: 188.4558594 | H53: 193.1672559 | J53: 197.9964373 | L53: 202.9463482
C54: 3 | D54: =D19*1.025 -> 215.378125 | F54: =F19*1.025 -> 220.7625781 | H54: =H19*1.025 -> 226.2816426 | J54: =J19*1.025 -> 231.9386836 | L54: =L19*1.025 -> 237.7371507
C55: 8 | D55: =D52 -> 157.59375 | F55: =F52 -> 161.5335937 | H55: =H52 -> 165.5719336 | J55: =J52 -> 169.7112319 | L55: =L52 -> 173.9540127
B56: Assistance | C56: ='Weeks 1-4 (Single Factor)'!C61 -> 3x8
B57: Assistance | C57: ='Weeks 1-4 (Single Factor)'!C62 -> 3x8
A59: Tonnage: | D59: Wk 5 | F59: Wk 6 | H59: Wk 7 | J59: Wk 8 | L59: Wk 9
A60: Core Exercise Tonnage | C60: Mon | D60: =SUMPRODUCT('Weeks 1-4 (Single Factor)'!$C$10:$C$24,D5:D19) -> 14317.96875 | F60: =SUMPRODUCT('Weeks 1-4 (Single Factor)'!$C$10:$C$24,F5:F19) -> 14675.91797 | H60: =SUMPRODUCT('Weeks 1-4 (Single Factor)'!$C$10:$C$24,H5:H19) -> 15042.81592 | J60: =SUMPRODUCT('Weeks 1-4 (Single Factor)'!$C$10:$C$24,J5:J19) -> 15418.88632 | L60: =SUMPRODUCT('Weeks 1-4 (Single Factor)'!$C$10:$C$24,L5:L19) -> 15804.35847
C61: Wed | D61: =SUMPRODUCT('Weeks 1-4 (Single Factor)'!$C$28:$C$39,D23:D34) -> 12565.85938 | F61: =SUMPRODUCT('Weeks 1-4 (Single Factor)'!$C$28:$C$39,F23:F34) -> 12880.00586 | H61: =SUMPRODUCT('Weeks 1-4 (Single Factor)'!$C$28:$C$39,H23:H34) -> 13202.00601 | J61: =SUMPRODUCT('Weeks 1-4 (Single Factor)'!$C$28:$C$39,J23:J34) -> 13532.05616 | L61: =SUMPRODUCT('Weeks 1-4 (Single Factor)'!$C$28:$C$39,L23:L34) -> 13870.35756
C62: Fri | D62: =SUMPRODUCT('Weeks 1-4 (Single Factor)'!$C$43:$C$60,D38:D55) -> 17429.74062 | F62: =SUMPRODUCT('Weeks 1-4 (Single Factor)'!$C$43:$C$60,F38:F55) -> 17865.48414 | H62: =SUMPRODUCT('Weeks 1-4 (Single Factor)'!$C$43:$C$60,H38:H55) -> 18312.12124 | J62: =SUMPRODUCT('Weeks 1-4 (Single Factor)'!$C$43:$C$60,J38:J55) -> 18769.92428 | L62: =SUMPRODUCT('Weeks 1-4 (Single Factor)'!$C$43:$C$60,L38:L55) -> 19239.17238
C63: Weekly | D63: =SUM(D60:D62) -> 44313.56875 | F63: =SUM(F60:F62) -> 45421.40797 | H63: =SUM(H60:H62) -> 46556.94317 | J63: =SUM(J60:J62) -> 47720.86675 | L63: =SUM(L60:L62) -> 48913.88842
A64: Tonnage w/Significance Cutoff | C64: Mon | D64: ='Tonnage Calc (do not change)'!H73 -> 10022.57812 | F64: ='Tonnage Calc (do not change)'!I73 -> 10273.14258 | H64: ='Tonnage Calc (do not change)'!J73 -> 10529.97114 | J64: ='Tonnage Calc (do not change)'!K73 -> 10793.22042 | L64: ='Tonnage Calc (do not change)'!L73 -> 11063.05093
C65: Wed | D65: ='Tonnage Calc (do not change)'!H74 -> 9148.125 | F65: ='Tonnage Calc (do not change)'!I74 -> 9376.828125 | H65: ='Tonnage Calc (do not change)'!J74 -> 9611.248828 | J65: ='Tonnage Calc (do not change)'!K74 -> 9851.530049 | L65: ='Tonnage Calc (do not change)'!L74 -> 10097.8183
C66: Fri | D66: ='Tonnage Calc (do not change)'!H75 -> 13134.35 | F66: ='Tonnage Calc (do not change)'!I75 -> 13462.70875 | H66: ='Tonnage Calc (do not change)'!J75 -> 13799.27647 | J66: ='Tonnage Calc (do not change)'!K75 -> 14144.25838 | L66: ='Tonnage Calc (do not change)'!L75 -> 14497.86484
C67: Weekly | D67: =SUM(D64:D66) -> 32305.05312 | F67: =SUM(F64:F66) -> 33112.67945 | H67: =SUM(H64:H66) -> 33940.49644 | J67: =SUM(J64:J66) -> 34789.00885 | L67: =SUM(L64:L66) -> 35658.73407

Sheet Tonnage Calc (do not change)
A1: NOTE: | B1: All this sheet does is calculate the tonnage incorporating the specified cutoff parameter on the first sheet (i.e. if <, then 0, otherwise X)
B2: Don't Change or Touch Anything
B4: ='Weeks 1-4 (Single Factor)'!B2 -> Test Weight | C4: ='Weeks 1-4 (Single Factor)'!C2 -> Reps (<12) | D4: ='Weeks 1-4 (Single Factor)'!D2 -> 1RM | E4: ='Weeks 1-4 (Single Factor)'!E2 -> 5RM
A5: ='Weeks 1-4 (Single Factor)'!A3 -> Squat | B5: ='Weeks 1-4 (Single Factor)'!B3 -> 315 | C5: ='Weeks 1-4 (Single Factor)'!C3 -> 5 | D5: ='Weeks 1-4 (Single Factor)'!D3 -> 354.410441 | E5: ='Weeks 1-4 (Single Factor)'!E3 -> 315 | G5: Set Interval | H5: ='Weeks 1-4 (Single Factor)'!I3 -> 0.125 | I5: Generally 10-15%
A6: ='Weeks 1-4 (Single Factor)'!A4 -> Bench | B6: ='Weeks 1-4 (Single Factor)'!B4 -> 225 | C6: ='Weeks 1-4 (Single Factor)'!C4 -> 5 | D6: ='Weeks 1-4 (Single Factor)'!D4 -> 253.150315 | E6: ='Weeks 1-4 (Single Factor)'!E4 -> 225 | G6: Tonnage Cutoff | H6: ='Weeks 1-4 (Single Factor)'!I5 -> 0.6 | I6: Given % of Single Rep Max for Inclusion in Relevant Tonnage
A7: ='Weeks 1-4 (Single Factor)'!A5 -> Row | B7: ='Weeks 1-4 (Single Factor)'!B5 -> 205 | C7: ='Weeks 1-4 (Single Factor)'!C5 -> 5 | D7: ='Weeks 1-4 (Single Factor)'!D5 -> 230.6480648 | E7: ='Weeks 1-4 (Single Factor)'!E5 -> 205
A8: ='Weeks 1-4 (Single Factor)'!A6 -> Dead | B8: ='Weeks 1-4 (Single Factor)'!B6 -> 315 | C8: ='Weeks 1-4 (Single Factor)'!C6 -> 5 | D8: ='Weeks 1-4 (Single Factor)'!D6 -> 354.410441 | E8: ='Weeks 1-4 (Single Factor)'!E6 -> 315
A9: ='Weeks 1-4 (Single Factor)'!A7 -> Incline | B9: ='Weeks 1-4 (Single Factor)'!B7 -> 185 | C9: ='Weeks 1-4 (Single Factor)'!C7 -> 5 | D9: ='Weeks 1-4 (Single Factor)'!D7 -> 208.1458146 | E9: ='Weeks 1-4 (Single Factor)'!E7 -> 185
A11: Squat 1RM | C11: 1RM | D11: =$D$5 -> 354.410441 | E11: =$D$5 -> 354.410441 | F11: =$D$5 -> 354.410441 | G11: =$D$5 -> 354.410441 | H11: =(H23)/(1.0278-(0.0278*5)) -> 363.2707021 | I11: =(I23)/(1.0278-(0.0278*5)) -> 372.3524696 | J11: =(J23)/(1.0278-(0.0278*5)) -> 381.6612814 | K11: =(K23)/(1.0278-(0.0278*5)) -> 391.2028134 | L11: =(L23)/(1.0278-(0.0278*5)) -> 400.9828837
A12: Bench 1RM | C12: 1RM | D12: =$D$6 -> 253.150315 | E12: =$D$6 -> 253.150315 | F12: =$D$6 -> 253.150315 | G12: =$D$6 -> 253.150315 | H12: =(H28)/(1.0278-(0.0278*5)) -> 259.4790729 | I12: =(I28)/(1.0278-(0.0278*5)) -> 265.9660497 | J12: =(J28)/(1.0278-(0.0278*5)) -> 272.615201 | K12: =(K28)/(1.0278-(0.0278*5)) -> 279.430581 | L12: =(L28)/(1.0278-(0.0278*5)) -> 286.4163455
A13: Row 1RM | C13: 1RM | D13: =$D$7 -> 230.6480648 | E13: =$D$7 -> 230.6480648 | F13: =$D$7 -> 230.6480648 | G13: =$D$7 -> 230.6480648 | H13: =(H33)/(1.0278-(0.0278*5)) -> 236.4142664 | I13: =(I33)/(1.0278-(0.0278*5)) -> 242.3246231 | J13: =(J33)/(1.0278-(0.0278*5)) -> 248.3827387 | K13: =(K33)/(1.0278-(0.0278*5)) -> 254.5923071 | L13: =(L33)/(1.0278-(0.0278*5)) -> 260.9571148
A14: Incline 1RM | C14: 1RM | D14: =$D$9 -> 208.1458146 | E14: =$D$9 -> 208.1458146 | F14: =$D$9 -> 208.1458146 | G14: =$D$9 -> 208.1458146 | H14: =(H43)/(1.0278-(0.0278*5)) -> 213.3494599 | I14: =(I43)/(1.0278-(0.0278*5)) -> 218.6831964 | J14: =(J43)/(1.0278-(0.0278*5)) -> 224.1502764 | K14: =(K43)/(1.0278-(0.0278*5)) -> 229.7540333 | L14: =(L43)/(1.0278-(0.0278*5)) -> 235.4978841
A15: Deadlift 1RM | C15: 1RM | D15: =$D$8 -> 354.410441 | E15: =$D$8 -> 354.410441 | F15: =$D$8 -> 354.410441 | G15: =$D$8 -> 354.410441 | H15: =(H47)/(1.0278-(0.0278*5)) -> 363.2707021 | I15: =(I47)/(1.0278-(0.0278*5)) -> 372.3524696 | J15: =(J47)/(1.0278-(0.0278*5)) -> 381.6612814 | K15: =(K47)/(1.0278-(0.0278*5)) -> 391.2028134 | L15: =(L47)/(1.0278-(0.0278*5)) -> 400.9828837
A18: ='Weeks 1-4 (Single Factor)'!A9 -> Day | B18: ='Weeks 1-4 (Single Factor)'!B9 -> Exercise | C18: ='Weeks 1-4 (Single Factor)'!C9 -> Reps | D18: ='Weeks 1-4 (Single Factor)'!D9 -> Wk 1 | E18: ='Weeks 1-4 (Single Factor)'!F9 -> Wk 2 | F18: ='Weeks 1-4 (Single Factor)'!H9 -> Wk 3 | G18: ='Weeks 1-4 (Single Factor)'!J9 -> Wk 4 | H18: ='Weeks 5-9 (Single Factor)'!D4 -> Wk 5 | I18: ='Weeks 5-9 (Single Factor)'!F4 -> Wk 6 | J18: ='Weeks 5-9 (Single Factor)'!H4 -> Wk 7 | K18: ='Weeks 5-9 (Single Factor)'!J4 -> Wk 8 | L18: ='Weeks 5-9 (Single Factor)'!L4 -> Wk 9 | N18: Wk 1 | O18: Wk 2 | P18: Wk 3 | Q18: Wk 4 | R18: Wk 5 | S18: Wk 6 | T18: Wk 7 | U18: Wk 8 | V18: Wk 9
A19: ='Weeks 1-4 (Single Factor)'!A10 -> Monday | B19: ='Weeks 1-4 (Single Factor)'!B10 -> Squat | C19: ='Weeks 1-4 (Single Factor)'!C10 -> 5 | D19: ='Weeks 1-4 (Single Factor)'!D10 -> 145.9803516 | E19: ='Weeks 1-4 (Single Factor)'!F10 -> 149.7234375 | F19: ='Weeks 1-4 (Single Factor)'!H10 -> 153.5625 | G19: ='Weeks 1-4 (Single Factor)'!J10 -> 157.5 | H19: ='Weeks 5-9 (Single Factor)'!D5 -> 161.4375 | I19: ='Weeks 5-9 (Single Factor)'!F5 -> 165.4734375 | J19: ='Weeks 5-9 (Single Factor)'!H5 -> 169.6102734 | K19: ='Weeks 5-9 (Single Factor)'!J5 -> 173.8505303 | L19: ='Weeks 5-9 (Single Factor)'!L5 -> 178.1967935 | N19: =IF(D19>($H$6*D$11),D19,0) -> 0 | O19: 0 | P19: 0 | Q19: 0 | R19: 0 | S19: 0 | T19: 0 | U19: 0 | V19: 0
C20: ='Weeks 1-4 (Single Factor)'!C11 -> 5 | D20: ='Weeks 1-4 (Single Factor)'!D11 -> 182.4754395 | E20: ='Weeks 1-4 (Single Factor)'!F11 -> 187.1542969 | F20: ='Weeks 1-4 (Single Factor)'!H11 -> 191.953125 | G20: ='Weeks 1-4 (Single Factor)'!J11 -> 196.875 | H20: ='Weeks 5-9 (Single Factor)'!D6 -> 201.796875 | I20: ='Weeks 5-9 (Single Factor)'!F6 -> 206.8417969 | J20: ='Weeks 5-9 (Single Factor)'!H6 -> 212.0128418 | K20: ='Weeks 5-9 (Single Factor)'!J6 -> 217.3131628 | L20: ='Weeks 5-9 (Single Factor)'!L6 -> 222.7459919 | N20: 0 | O20: 0 | P20: 0 | Q20: 0 | R20: 0 | S20: 0 | T20: 0 | U20: 0 | V20: 0
C21: ='Weeks 1-4 (Single Factor)'!C12 -> 5 | D21: ='Weeks 1-4 (Single Factor)'!D12 -> 218.9705273 | E21: ='Weeks 1-4 (Single Factor)'!F12 -> 224.5851562 | F21: ='Weeks 1-4 (Single Factor)'!H12 -> 230.34375 | G21: ='Weeks 1-4 (Single Factor)'!J12 -> 236.25 | H21: ='Weeks 5-9 (Single Factor)'!D7 -> 242.15625 | I21: ='Weeks 5-9 (Single Factor)'!F7 -> 248.2101562 | J21: ='Weeks 5-9 (Single Factor)'!H7 -> 254.4154102 | K21: ='Weeks 5-9 (Single Factor)'!J7 -> 260.7757954 | L21: ='Weeks 5-9 (Single Factor)'!L7 -> 267.2951903 | N21: 218.9705273 | O21: 224.5851562 | P21: 230.34375 | Q21: 236.25 | R21: 242.15625 | S21: 248.2101562 | T21: 254.4154102 | U21: 260.7757954 | V21: 267.2951903
C22: ='Weeks 1-4 (Single Factor)'!C13 -> 5 | D22: ='Weeks 1-4 (Single Factor)'!D13 -> 255.4656152 | E22: ='Weeks 1-4 (Single Factor)'!F13 -> 262.0160156 | F22: ='Weeks 1-4 (Single Factor)'!H13 -> 268.734375 | G22: ='Weeks 1-4 (Single Factor)'!J13 -> 275.625 | H22: ='Weeks 5-9 (Single Factor)'!D8 -> 282.515625 | I22: ='Weeks 5-9 (Single Factor)'!F8 -> 289.5785156 | J22: ='Weeks 5-9 (Single Factor)'!H8 -> 296.8179785 | K22: ='Weeks 5-9 (Single Factor)'!J8 -> 304.238428 | L22: ='Weeks 5-9 (Single Factor)'!L8 -> 311.8443887 | N22: 255.4656152 | O22: 262.0160156 | P22: 268.734375 | Q22: 275.625 | R22: 282.515625 | S22: 289.5785156 | T22: 296.8179785 | U22: 304.238428 | V22: 311.8443887
C23: ='Weeks 1-4 (Single Factor)'!C14 -> 5 | D23: ='Weeks 1-4 (Single Factor)'!D14 -> 291.9607031 | E23: ='Weeks 1-4 (Single Factor)'!F14 -> 299.446875 | F23: ='Weeks 1-4 (Single Factor)'!H14 -> 307.125 | G23: ='Weeks 1-4 (Single Factor)'!J14 -> 315 | H23: ='Weeks 5-9 (Single Factor)'!D9 -> 322.875 | I23: ='Weeks 5-9 (Single Factor)'!F9 -> 330.946875 | J23: ='Weeks 5-9 (Single Factor)'!H9 -> 339.2205469 | K23: ='Weeks 5-9 (Single Factor)'!J9 -> 347.7010605 | L23: ='Weeks 5-9 (Single Factor)'!L9 -> 356.3935871 | N23: 291.9607031 | O23: 299.446875 | P23: 307.125 | Q23: 315 | R23: 322.875 | S23: 330.946875 | T23: 339.2205469 | U23: 347.7010605 | V23: 356.3935871
B24: ='Weeks 1-4 (Single Factor)'!B15 -> Bench | C24: ='Weeks 1-4 (Single Factor)'!C15 -> 5 | D24: ='Weeks 1-4 (Single Factor)'!D15 -> 104.2716797 | E24: ='Weeks 1-4 (Single Factor)'!F15 -> 106.9453125 | F24: ='Weeks 1-4 (Single Factor)'!H15 -> 109.6875 | G24: ='Weeks 1-4 (Single Factor)'!J15 -> 112.5 | H24: ='Weeks 5-9 (Single Factor)'!D10 -> 115.3125 | I24: ='Weeks 5-9 (Single Factor)'!F10 -> 118.1953125 | J24: ='Weeks 5-9 (Single Factor)'!H10 -> 121.1501953 | K24: ='Weeks 5-9 (Single Factor)'!J10 -> 124.1789502 | L24: ='Weeks 5-9 (Single Factor)'!L10 -> 127.283424 | N24: =IF(D24>($H$6*D$12),D24,0) -> 0 | O24: 0 | P24: 0 | Q24: 0 | R24: 0 | S24: 0 | T24: 0 | U24: 0 | V24: 0
C25: ='Weeks 1-4 (Single Factor)'!C16 -> 5 | D25: ='Weeks 1-4 (Single Factor)'!D16 -> 130.3395996 | E25: ='Weeks 1-4 (Single Factor)'!F16 -> 133.6816406 | F25: ='Weeks 1-4 (Single Factor)'!H16 -> 137.109375 | G25: ='Weeks 1-4 (Single Factor)'!J16 -> 140.625 | H25: ='Weeks 5-9 (Single Factor)'!D11 -> 144.140625 | I25: ='Weeks 5-9 (Single Factor)'!F11 -> 147.7441406 | J25: ='Weeks 5-9 (Single Factor)'!H11 -> 151.4377441 | K25: ='Weeks 5-9 (Single Factor)'!J11 -> 155.2236877 | L25: ='Weeks 5-9 (Single Factor)'!L11 -> 159.1042799 | N25: 0 | O25: 0 | P25: 0 | Q25: 0 | R25: 0 | S25: 0 | T25: 0 | U25: 0 | V25: 0
C26: ='Weeks 1-4 (Single Factor)'!C17 -> 5 | D26: ='Weeks 1-4 (Single Factor)'!D17 -> 156.4075195 | E26: ='Weeks 1-4 (Single Factor)'!F17 -> 160.4179688 | F26: ='Weeks 1-4 (Single Factor)'!H17 -> 164.53125 | G26: ='Weeks 1-4 (Single Factor)'!J17 -> 168.75 | H26: ='Weeks 5-9 (Single Factor)'!D12 -> 172.96875 | I26: ='Weeks 5-9 (Single Factor)'!F12 -> 177.2929687 | J26: ='Weeks 5-9 (Single Factor)'!H12 -> 181.725293 | K26: ='Weeks 5-9 (Single Factor)'!J12 -> 186.2684253 | L26: ='Weeks 5-9 (Single Factor)'!L12 -> 190.9251359 | N26: 156.4075195 | O26: 160.4179688 | P26: 164.53125 | Q26: 168.75 | R26: 172.96875 | S26: 177.2929687 | T26: 181.725293 | U26: 186.2684253 | V26: 190.9251359
C27: ='Weeks 1-4 (Single Factor)'!C18 -> 5 | D27: ='Weeks 1-4 (Single Factor)'!D18 -> 182.4754395 | E27: ='Weeks 1-4 (Single Factor)'!F18 -> 187.1542969 | F27: ='Weeks 1-4 (Single Factor)'!H18 -> 191.953125 | G27: ='Weeks 1-4 (Single Factor)'!J18 -> 196.875 | H27: ='Weeks 5-9 (Single Factor)'!D13 -> 201.796875 | I27: ='Weeks 5-9 (Single Factor)'!F13 -> 206.8417969 | J27: ='Weeks 5-9 (Single Factor)'!H13 -> 212.0128418 | K27: ='Weeks 5-9 (Single Factor)'!J13 -> 217.3131628 | L27: ='Weeks 5-9 (Single Factor)'!L13 -> 222.7459919 | N27: 182.4754395 | O27: 187.1542969 | P27: 191.953125 | Q27: 196.875 | R27: 201.796875 | S27: 206.8417969 | T27: 212.0128418 | U27: 217.3131628 | V27: 222.7459919
C28: ='Weeks 1-4 (Single Factor)'!C19 -> 5 | D28: ='Weeks 1-4 (Single Factor)'!D19 -> 208.5433594 | E28: ='Weeks 1-4 (Single Factor)'!F19 -> 213.890625 | F28: ='Weeks 1-4 (Single Factor)'!H19 -> 219.375 | G28: ='Weeks 1-4 (Single Factor)'!J19 -> 225 | H28: ='Weeks 5-9 (Single Factor)'!D14 -> 230.625 | I28: ='Weeks 5-9 (Single Factor)'!F14 -> 236.390625 | J28: ='Weeks 5-9 (Single Factor)'!H14 -> 242.3003906 | K28: ='Weeks 5-9 (Single Factor)'!J14 -> 248.3579004 | L28: ='Weeks 5-9 (Single Factor)'!L14 -> 254.5668479 | N28: 208.5433594 | O28: 213.890625 | P28: 219.375 | Q28: 225 | R28: 230.625 | S28: 236.390625 | T28: 242.3003906 | U28: 248.3579004 | V28: 254.5668479
B29: ='Weeks 1-4 (Single Factor)'!B20 -> Bent Rows | C29: ='Weeks 1-4 (Single Factor)'!C20 -> 5 | D29: ='Weeks 1-4 (Single Factor)'!D20 -> 95.00308594 | E29: ='Weeks 1-4 (Single Factor)'!F20 -> 97.4390625 | F29: ='Weeks 1-4 (Single Factor)'!H20 -> 99.9375 | G29: ='Weeks 1-4 (Single Factor)'!J20 -> 102.5 | H29: ='Weeks 5-9 (Single Factor)'!D15 -> 105.0625 | I29: ='Weeks 5-9 (Single Factor)'!F15 -> 107.6890625 | J29: ='Weeks 5-9 (Single Factor)'!H15 -> 110.3812891 | K29: ='Weeks 5-9 (Single Factor)'!J15 -> 113.1408213 | L29: ='Weeks 5-9 (Single Factor)'!L15 -> 115.9693418 | N29: =IF(D29>($H$6*D$13),D29,0) -> 0 | O29: 0 | P29: 0 | Q29: 0 | R29: 0 | S29: 0 | T29: 0 | U29: 0 | V29: 0
C30: ='Weeks 1-4 (Single Factor)'!C21 -> 5 | D30: ='Weeks 1-4 (Single Factor)'!D21 -> 118.7538574 | E30: ='Weeks 1-4 (Single Factor)'!F21 -> 121.7988281 | F30: ='Weeks 1-4 (Single Factor)'!H21 -> 124.921875 | G30: ='Weeks 1-4 (Single Factor)'!J21 -> 128.125 | H30: ='Weeks 5-9 (Single Factor)'!D16 -> 131.328125 | I30: ='Weeks 5-9 (Single Factor)'!F16 -> 134.6113281 | J30: ='Weeks 5-9 (Single Factor)'!H16 -> 137.9766113 | K30: ='Weeks 5-9 (Single Factor)'!J16 -> 141.4260266 | L30: ='Weeks 5-9 (Single Factor)'!L16 -> 144.9616773 | N30: 0 | O30: 0 | P30: 0 | Q30: 0 | R30: 0 | S30: 0 | T30: 0 | U30: 0 | V30: 0
C31: ='Weeks 1-4 (Single Factor)'!C22 -> 5 | D31: ='Weeks 1-4 (Single Factor)'!D22 -> 142.5046289 | E31: ='Weeks 1-4 (Single Factor)'!F22 -> 146.1585937 | F31: ='Weeks 1-4 (Single Factor)'!H22 -> 149.90625 | G31: ='Weeks 1-4 (Single Factor)'!J22 -> 153.75 | H31: ='Weeks 5-9 (Single Factor)'!D17 -> 157.59375 | I31: ='Weeks 5-9 (Single Factor)'!F17 -> 161.5335937 | J31: ='Weeks 5-9 (Single Factor)'!H17 -> 165.5719336 | K31: ='Weeks 5-9 (Single Factor)'!J17 -> 169.7112319 | L31: ='Weeks 5-9 (Single Factor)'!L17 -> 173.9540127 | N31: 142.5046289 | O31: 146.1585937 | P31: 149.90625 | Q31: 153.75 | R31: 157.59375 | S31: 161.5335937 | T31: 165.5719336 | U31: 169.7112319 | V31: 173.9540127
C32: ='Weeks 1-4 (Single Factor)'!C23 -> 5 | D32: ='Weeks 1-4 (Single Factor)'!D23 -> 166.2554004 | E32: ='Weeks 1-4 (Single Factor)'!F23 -> 170.5183594 | F32: ='Weeks 1-4 (Single Factor)'!H23 -> 174.890625 | G32: ='Weeks 1-4 (Single Factor)'!J23 -> 179.375 | H32: ='Weeks 5-9 (Single Factor)'!D18 -> 183.859375 | I32: ='Weeks 5-9 (Single Factor)'!F18 -> 188.4558594 | J32: ='Weeks 5-9 (Single Factor)'!H18 -> 193.1672559 | K32: ='Weeks 5-9 (Single Factor)'!J18 -> 197.9964373 | L32: ='Weeks 5-9 (Single Factor)'!L18 -> 202.9463482 | N32: 166.2554004 | O32: 170.5183594 | P32: 174.890625 | Q32: 179.375 | R32: 183.859375 | S32: 188.4558594 | T32: 193.1672559 | U32: 197.9964373 | V32: 202.9463482
C33: ='Weeks 1-4 (Single Factor)'!C24 -> 5 | D33: ='Weeks 1-4 (Single Factor)'!D24 -> 190.0061719 | E33: ='Weeks 1-4 (Single Factor)'!F24 -> 194.878125 | F33: ='Weeks 1-4 (Single Factor)'!H24 -> 199.875 | G33: ='Weeks 1-4 (Single Factor)'!J24 -> 205 | H33: ='Weeks 5-9 (Single Factor)'!D19 -> 210.125 | I33: ='Weeks 5-9 (Single Factor)'!F19 -> 215.378125 | J33: ='Weeks 5-9 (Single Factor)'!H19 -> 220.7625781 | K33: ='Weeks 5-9 (Single Factor)'!J19 -> 226.2816426 | L33: ='Weeks 5-9 (Single Factor)'!L19 -> 231.9386836 | N33: 190.0061719 | O33: 194.878125 | P33: 199.875 | Q33: 205 | R33: 210.125 | S33: 215.378125 | T33: 220.7625781 | U33: 226.2816426 | V33: 231.9386836
A36: ='Weeks 1-4 (Single Factor)'!A28 -> Wednesday | B36: ='Weeks 1-4 (Single Factor)'!B28 -> Squat | C36: ='Weeks 1-4 (Single Factor)'!C28 -> 5 | D36: ='Weeks 1-4 (Single Factor)'!D28 -> 145.9803516 | E36: ='Weeks 1-4 (Single Factor)'!F28 -> 149.7234375 | F36: ='Weeks 1-4 (Single Factor)'!H28 -> 153.5625 | G36: ='Weeks 1-4 (Single Factor)'!J28 -> 157.5 | H36: ='Weeks 5-9 (Single Factor)'!D23 -> 161.4375 | I36: ='Weeks 5-9 (Single Factor)'!F23 -> 165.4734375 | J36: ='Weeks 5-9 (Single Factor)'!H23 -> 169.6102734 | K36: ='Weeks 5-9 (Single Factor)'!J23 -> 173.8505303 | L36: ='Weeks 5-9 (Single Factor)'!L23 -> 178.1967935 | N36: =IF(D36>($H$6*D$11),D36,0) -> 0 | O36: 0 | P36: 0 | Q36: 0 | R36: 0 | S36: 0 | T36: 0 | U36: 0 | V36: 0
C37: ='Weeks 1-4 (Single Factor)'!C29 -> 5 | D37: ='Weeks 1-4 (Single Factor)'!D29 -> 182.4754395 | E37: ='Weeks 1-4 (Single Factor)'!F29 -> 187.1542969 | F37: ='Weeks 1-4 (Single Factor)'!H29 -> 191.953125 | G37: ='Weeks 1-4 (Single Factor)'!J29 -> 196.875 | H37: ='Weeks 5-9 (Single Factor)'!D24 -> 201.796875 | I37: ='Weeks 5-9 (Single Factor)'!F24 -> 206.8417969 | J37: ='Weeks 5-9 (Single Factor)'!H24 -> 212.0128418 | K37: ='Weeks 5-9 (Single Factor)'!J24 -> 217.3131628 | L37: ='Weeks 5-9 (Single Factor)'!L24 -> 222.7459919 | N37: 0 | O37: 0 | P37: 0 | Q37: 0 | R37: 0 | S37: 0 | T37: 0 | U37: 0 | V37: 0
C38: ='Weeks 1-4 (Single Factor)'!C30 -> 5 | D38: ='Weeks 1-4 (Single Factor)'!D30 -> 218.9705273 | E38: ='Weeks 1-4 (Single Factor)'!F30 -> 224.5851562 | F38: ='Weeks 1-4 (Single Factor)'!H30 -> 230.34375 | G38: ='Weeks 1-4 (Single Factor)'!J30 -> 236.25 | H38: ='Weeks 5-9 (Single Factor)'!D25 -> 242.15625 | I38: ='Weeks 5-9 (Single Factor)'!F25 -> 248.2101562 | J38: ='Weeks 5-9 (Single Factor)'!H25 -> 254.4154102 | K38: ='Weeks 5-9 (Single Factor)'!J25 -> 260.7757954 | L38: ='Weeks 5-9 (Single Factor)'!L25 -> 267.2951903 | N38: 218.9705273 | O38: 224.5851562 | P38: 230.34375 | Q38: 236.25 | R38: 242.15625 | S38: 248.2101562 | T38: 254.4154102 | U38: 260.7757954 | V38: 267.2951903
C39: ='Weeks 1-4 (Single Factor)'!C31 -> 5 | D39: ='Weeks 1-4 (Single Factor)'!D31 -> 218.9705273 | E39: ='Weeks 1-4 (Single Factor)'!F31 -> 224.5851562 | F39: ='Weeks 1-4 (Single Factor)'!H31 -> 230.34375 | G39: ='Weeks 1-4 (Single Factor)'!J31 -> 236.25 | H39: ='Weeks 5-9 (Single Factor)'!D26 -> 242.15625 | I39: ='Weeks 5-9 (Single Factor)'!F26 -> 248.2101562 | J39: ='Weeks 5-9 (Single Factor)'!H26 -> 254.4154102 | K39: ='Weeks 5-9 (Single Factor)'!J26 -> 260.7757954 | L39: ='Weeks 5-9 (Single Factor)'!L26 -> 267.2951903 | N39: 218.9705273 | O39: 224.5851562 | P39: 230.34375 | Q39: 236.25 | R39: 242.15625 | S39: 248.2101562 | T39: 254.4154102 | U39: 260.7757954 | V39: 267.2951903
B40: ='Weeks 1-4 (Single Factor)'!B32 -> Incline Bench | C40: ='Weeks 1-4 (Single Factor)'!C32 -> 5 | D40: ='Weeks 1-4 (Single Factor)'!D32 -> 107.1681152 | E40: ='Weeks 1-4 (Single Factor)'!F32 -> 109.9160156 | F40: ='Weeks 1-4 (Single Factor)'!H32 -> 112.734375 | G40: ='Weeks 1-4 (Single Factor)'!J32 -> 115.625 | H40: ='Weeks 5-9 (Single Factor)'!D27 -> 118.515625 | I40: ='Weeks 5-9 (Single Factor)'!F27 -> 121.4785156 | J40: ='Weeks 5-9 (Single Factor)'!H27 -> 124.5154785 | K40: ='Weeks 5-9 (Single Factor)'!J27 -> 127.6283655 | L40: ='Weeks 5-9 (Single Factor)'!L27 -> 130.8190746 | N40: =IF(D40>($H$6*D$14),D40,0) -> 0 | O40: 0 | P40: 0 | Q40: 0 | R40: 0 | S40: 0 | T40: 0 | U40: 0 | V40: 0
C41: ='Weeks 1-4 (Single Factor)'!C33 -> 5 | D41: ='Weeks 1-4 (Single Factor)'!D33 -> 128.6017383 | E41: ='Weeks 1-4 (Single Factor)'!F33 -> 131.8992187 | F41: ='Weeks 1-4 (Single Factor)'!H33 -> 135.28125 | G41: ='Weeks 1-4 (Single Factor)'!J33 -> 138.75 | H41: ='Weeks 5-9 (Single Factor)'!D28 -> 142.21875 | I41: ='Weeks 5-9 (Single Factor)'!F28 -> 145.7742187 | J41: ='Weeks 5-9 (Single Factor)'!H28 -> 149.4185742 | K41: ='Weeks 5-9 (Single Factor)'!J28 -> 153.1540386 | L41: ='Weeks 5-9 (Single Factor)'!L28 -> 156.9828895 | N41: 128.6017383 | O41: 131.8992187 | P41: 135.28125 | Q41: 138.75 | R41: 142.21875 | S41: 145.7742187 | T41: 149.4185742 | U41: 153.1540386 | V41: 156.9828895
C42: ='Weeks 1-4 (Single Factor)'!C34 -> 5 | D42: ='Weeks 1-4 (Single Factor)'!D34 -> 150.0353613 | E42: ='Weeks 1-4 (Single Factor)'!F34 -> 153.8824219 | F42: ='Weeks 1-4 (Single Factor)'!H34 -> 157.828125 | G42: ='Weeks 1-4 (Single Factor)'!J34 -> 161.875 | H42: ='Weeks 5-9 (Single Factor)'!D29 -> 165.921875 | I42: ='Weeks 5-9 (Single Factor)'!F29 -> 170.0699219 | J42: ='Weeks 5-9 (Single Factor)'!H29 -> 174.3216699 | K42: ='Weeks 5-9 (Single Factor)'!J29 -> 178.6797117 | L42: ='Weeks 5-9 (Single Factor)'!L29 -> 183.1467045 | N42: 150.0353613 | O42: 153.8824219 | P42: 157.828125 | Q42: 161.875 | R42: 165.921875 | S42: 170.0699219 | T42: 174.3216699 | U42: 178.6797117 | V42: 183.1467045
C43: ='Weeks 1-4 (Single Factor)'!C35 -> 5 | D43: ='Weeks 1-4 (Single Factor)'!D35 -> 171.4689844 | E43: ='Weeks 1-4 (Single Factor)'!F35 -> 175.865625 | F43: ='Weeks 1-4 (Single Factor)'!H35 -> 180.375 | G43: ='Weeks 1-4 (Single Factor)'!J35 -> 185 | H43: ='Weeks 5-9 (Single Factor)'!D30 -> 189.625 | I43: ='Weeks 5-9 (Single Factor)'!F30 -> 194.365625 | J43: ='Weeks 5-9 (Single Factor)'!H30 -> 199.2247656 | K43: ='Weeks 5-9 (Single Factor)'!J30 -> 204.2053848 | L43: ='Weeks 5-9 (Single Factor)'!L30 -> 209.3105194 | N43: 171.4689844 | O43: 175.865625 | P43: 180.375 | Q43: 185 | R43: 189.625 | S43: 194.365625 | T43: 199.2247656 | U43: 204.2053848 | V43: 209.3105194
B44: ='Weeks 1-4 (Single Factor)'!B36 -> Deadlift | C44: ='Weeks 1-4 (Single Factor)'!C36 -> 5 | D44: ='Weeks 1-4 (Single Factor)'!D36 -> 182.4754395 | E44: ='Weeks 1-4 (Single Factor)'!F36 -> 187.1542969 | F44: ='Weeks 1-4 (Single Factor)'!H36 -> 191.953125 | G44: ='Weeks 1-4 (Single Factor)'!J36 -> 196.875 | H44: ='Weeks 5-9 (Single Factor)'!D31 -> 201.796875 | I44: ='Weeks 5-9 (Single Factor)'!F31 -> 206.8417969 | J44: ='Weeks 5-9 (Single Factor)'!H31 -> 212.0128418 | K44: ='Weeks 5-9 (Single Factor)'!J31 -> 217.3131628 | L44: ='Weeks 5-9 (Single Factor)'!L31 -> 222.7459919 | N44: =IF(D44>($H$6*D$15),D44,0) -> 0 | O44: 0 | P44: 0 | Q44: 0 | R44: 0 | S44: 0 | T44: 0 | U44: 0 | V44: 0
C45: ='Weeks 1-4 (Single Factor)'!C37 -> 5 | D45: ='Weeks 1-4 (Single Factor)'!D37 -> 218.9705273 | E45: ='Weeks 1-4 (Single Factor)'!F37 -> 224.5851562 | F45: ='Weeks 1-4 (Single Factor)'!H37 -> 230.34375 | G45: ='Weeks 1-4 (Single Factor)'!J37 -> 236.25 | H45: ='Weeks 5-9 (Single Factor)'!D32 -> 242.15625 | I45: ='Weeks 5-9 (Single Factor)'!F32 -> 248.2101562 | J45: ='Weeks 5-9 (Single Factor)'!H32 -> 254.4154102 | K45: ='Weeks 5-9 (Single Factor)'!J32 -> 260.7757954 | L45: ='Weeks 5-9 (Single Factor)'!L32 -> 267.2951903 | N45: 218.9705273 | O45: 224.5851562 | P45: 230.34375 | Q45: 236.25 | R45: 242.15625 | S45: 248.2101562 | T45: 254.4154102 | U45: 260.7757954 | V45: 267.2951903
C46: ='Weeks 1-4 (Single Factor)'!C38 -> 5 | D46: ='Weeks 1-4 (Single Factor)'!D38 -> 255.4656152 | E46: ='Weeks 1-4 (Single Factor)'!F38 -> 262.0160156 | F46: ='Weeks 1-4 (Single Factor)'!H38 -> 268.734375 | G46: ='Weeks 1-4 (Single Factor)'!J38 -> 275.625 | H46: ='Weeks 5-9 (Single Factor)'!D33 -> 282.515625 | I46: ='Weeks 5-9 (Single Factor)'!F33 -> 289.5785156 | J46: ='Weeks 5-9 (Single Factor)'!H33 -> 296.8179785 | K46: ='Weeks 5-9 (Single Factor)'!J33 -> 304.238428 | L46: ='Weeks 5-9 (Single Factor)'!L33 -> 311.8443887 | N46: 255.4656152 | O46: 262.0160156 | P46: 268.734375 | Q46: 275.625 | R46: 282.515625 | S46: 289.5785156 | T46: 296.8179785 | U46: 304.238428 | V46: 311.8443887
C47: ='Weeks 1-4 (Single Factor)'!C39 -> 5 | D47: ='Weeks 1-4 (Single Factor)'!D39 -> 291.9607031 | E47: ='Weeks 1-4 (Single Factor)'!F39 -> 299.446875 | F47: ='Weeks 1-4 (Single Factor)'!H39 -> 307.125 | G47: ='Weeks 1-4 (Single Factor)'!J39 -> 315 | H47: ='Weeks 5-9 (Single Factor)'!D34 -> 322.875 | I47: ='Weeks 5-9 (Single Factor)'!F34 -> 330.946875 | J47: ='Weeks 5-9 (Single Factor)'!H34 -> 339.2205469 | K47: ='Weeks 5-9 (Single Factor)'!J34 -> 347.7010605 | L47: ='Weeks 5-9 (Single Factor)'!L34 -> 356.3935871 | N47: 291.9607031 | O47: 299.446875 | P47: 307.125 | Q47: 315 | R47: 322.875 | S47: 330.946875 | T47: 339.2205469 | U47: 347.7010605 | V47: 356.3935871
A50: ='Weeks 1-4 (Single Factor)'!A43 -> Friday | B50: ='Weeks 1-4 (Single Factor)'!B43 -> Squat | C50: ='Weeks 1-4 (Single Factor)'!C43 -> 5 | D50: ='Weeks 1-4 (Single Factor)'!D43 -> 145.9803516 | E50: ='Weeks 1-4 (Single Factor)'!F43 -> 149.7234375 | F50: ='Weeks 1-4 (Single Factor)'!H43 -> 153.5625 | G50: ='Weeks 1-4 (Single Factor)'!J43 -> 157.5 | H50: ='Weeks 5-9 (Single Factor)'!D38 -> 161.4375 | I50: ='Weeks 5-9 (Single Factor)'!F38 -> 165.4734375 | J50: ='Weeks 5-9 (Single Factor)'!H38 -> 169.6102734 | K50: ='Weeks 5-9 (Single Factor)'!J38 -> 173.8505303 | L50: ='Weeks 5-9 (Single Factor)'!L38 -> 178.1967935 | N50: =IF(D50>($H$6*D$11),D50,0) -> 0 | O50: 0 | P50: 0 | Q50: 0 | R50: 0 | S50: 0 | T50: 0 | U50: 0 | V50: 0
C51: ='Weeks 1-4 (Single Factor)'!C44 -> 5 | D51: ='Weeks 1-4 (Single Factor)'!D44 -> 182.4754395 | E51: ='Weeks 1-4 (Single Factor)'!F44 -> 187.1542969 | F51: ='Weeks 1-4 (Single Factor)'!H44 -> 191.953125 | G51: ='Weeks 1-4 (Single Factor)'!J44 -> 196.875 | H51: ='Weeks 5-9 (Single Factor)'!D39 -> 201.796875 | I51: ='Weeks 5-9 (Single Factor)'!F39 -> 206.8417969 | J51: ='Weeks 5-9 (Single Factor)'!H39 -> 212.0128418 | K51: ='Weeks 5-9 (Single Factor)'!J39 -> 217.3131628 | L51: ='Weeks 5-9 (Single Factor)'!L39 -> 222.7459919 | N51: 0 | O51: 0 | P51: 0 | Q51: 0 | R51: 0 | S51: 0 | T51: 0 | U51: 0 | V51: 0
C52: ='Weeks 1-4 (Single Factor)'!C45 -> 5 | D52: ='Weeks 1-4 (Single Factor)'!D45 -> 218.9705273 | E52: ='Weeks 1-4 (Single Factor)'!F45 -> 224.5851562 | F52: ='Weeks 1-4 (Single Factor)'!H45 -> 230.34375 | G52: ='Weeks 1-4 (Single Factor)'!J45 -> 236.25 | H52: ='Weeks 5-9 (Single Factor)'!D40 -> 242.15625 | I52: ='Weeks 5-9 (Single Factor)'!F40 -> 248.2101562 | J52: ='Weeks 5-9 (Single Factor)'!H40 -> 254.4154102 | K52: ='Weeks 5-9 (Single Factor)'!J40 -> 260.7757954 | L52: ='Weeks 5-9 (Single Factor)'!L40 -> 267.2951903 | N52: 218.9705273 | O52: 224.5851562 | P52: 230.34375 | Q52: 236.25 | R52: 242.15625 | S52: 248.2101562 | T52: 254.4154102 | U52: 260.7757954 | V52: 267.2951903
C53: ='Weeks 1-4 (Single Factor)'!C46 -> 5 | D53: ='Weeks 1-4 (Single Factor)'!D46 -> 255.4656152 | E53: ='Weeks 1-4 (Single Factor)'!F46 -> 262.0160156 | F53: ='Weeks 1-4 (Single Factor)'!H46 -> 268.734375 | G53: ='Weeks 1-4 (Single Factor)'!J46 -> 275.625 | H53: ='Weeks 5-9 (Single Factor)'!D41 -> 282.515625 | I53: ='Weeks 5-9 (Single Factor)'!F41 -> 289.5785156 | J53: ='Weeks 5-9 (Single Factor)'!H41 -> 296.8179785 | K53: ='Weeks 5-9 (Single Factor)'!J41 -> 304.238428 | L53: ='Weeks 5-9 (Single Factor)'!L41 -> 311.8443887 | N53: 255.4656152 | O53: 262.0160156 | P53: 268.734375 | Q53: 275.625 | R53: 282.515625 | S53: 289.5785156 | T53: 296.8179785 | U53: 304.238428 | V53: 311.8443887
C54: ='Weeks 1-4 (Single Factor)'!C47 -> 3 | D54: ='Weeks 1-4 (Single Factor)'!D47 -> 299.2597207 | E54: ='Weeks 1-4 (Single Factor)'!F47 -> 306.9330469 | F54: ='Weeks 1-4 (Single Factor)'!H47 -> 314.803125 | G54: ='Weeks 1-4 (Single Factor)'!J47 -> 322.875 | H54: ='Weeks 5-9 (Single Factor)'!D42 -> 330.946875 | I54: ='Weeks 5-9 (Single Factor)'!F42 -> 339.2205469 | J54: ='Weeks 5-9 (Single Factor)'!H42 -> 347.7010605 | K54: ='Weeks 5-9 (Single Factor)'!J42 -> 356.3935871 | L54: ='Weeks 5-9 (Single Factor)'!L42 -> 365.3034267 | N54: 299.2597207 | O54: 306.9330469 | P54: 314.803125 | Q54: 322.875 | R54: 330.946875 | S54: 339.2205469 | T54: 347.7010605 | U54: 356.3935871 | V54: 365.3034267
C55: ='Weeks 1-4 (Single Factor)'!C48 -> 8 | D55: ='Weeks 1-4 (Single Factor)'!D48 -> 218.9705273 | E55: ='Weeks 1-4 (Single Factor)'!F48 -> 224.5851562 | F55: ='Weeks 1-4 (Single Factor)'!H48 -> 230.34375 | G55: ='Weeks 1-4 (Single Factor)'!J48 -> 236.25 | H55: ='Weeks 5-9 (Single Factor)'!D43 -> 242.15625 | I55: ='Weeks 5-9 (Single Factor)'!F43 -> 248.2101562 | J55: ='Weeks 5-9 (Single Factor)'!H43 -> 254.4154102 | K55: ='Weeks 5-9 (Single Factor)'!J43 -> 260.7757954 | L55: ='Weeks 5-9 (Single Factor)'!L43 -> 267.2951903 | N55: 218.9705273 | O55: 224.5851562 | P55: 230.34375 | Q55: 236.25 | R55: 242.15625 | S55: 248.2101562 | T55: 254.4154102 | U55: 260.7757954 | V55: 267.2951903
B56: ='Weeks 1-4 (Single Factor)'!B49 -> Bench | C56: ='Weeks 1-4 (Single Factor)'!C49 -> 5 | D56: ='Weeks 1-4 (Single Factor)'!D49 -> 104.2716797 | E56: ='Weeks 1-4 (Single Factor)'!F49 -> 106.9453125 | F56: ='Weeks 1-4 (Single Factor)'!H49 -> 109.6875 | G56: ='Weeks 1-4 (Single Factor)'!J49 -> 112.5 | H56: ='Weeks 5-9 (Single Factor)'!D44 -> 115.3125 | I56: ='Weeks 5-9 (Single Factor)'!F44 -> 118.1953125 | J56: ='Weeks 5-9 (Single Factor)'!H44 -> 121.1501953 | K56: ='Weeks 5-9 (Single Factor)'!J44 -> 124.1789502 | L56: ='Weeks 5-9 (Single Factor)'!L44 -> 127.283424 | N56: =IF(D56>($H$6*D$12),D56,0) -> 0 | O56: 0 | P56: 0 | Q56: 0 | R56: 0 | S56: 0 | T56: 0 | U56: 0 | V56: 0
C57: ='Weeks 1-4 (Single Factor)'!C50 -> 5 | D57: ='Weeks 1-4 (Single Factor)'!D50 -> 130.3395996 | E57: ='Weeks 1-4 (Single Factor)'!F50 -> 133.6816406 | F57: ='Weeks 1-4 (Single Factor)'!H50 -> 137.109375 | G57: ='Weeks 1-4 (Single Factor)'!J50 -> 140.625 | H57: ='Weeks 5-9 (Single Factor)'!D45 -> 144.140625 | I57: ='Weeks 5-9 (Single Factor)'!F45 -> 147.7441406 | J57: ='Weeks 5-9 (Single Factor)'!H45 -> 151.4377441 | K57: ='Weeks 5-9 (Single Factor)'!J45 -> 155.2236877 | L57: ='Weeks 5-9 (Single Factor)'!L45 -> 159.1042799 | N57: 0 | O57: 0 | P57: 0 | Q57: 0 | R57: 0 | S57: 0 | T57: 0 | U57: 0 | V57: 0
C58: ='Weeks 1-4 (Single Factor)'!C51 -> 5 | D58: ='Weeks 1-4 (Single Factor)'!D51 -> 156.4075195 | E58: ='Weeks 1-4 (Single Factor)'!F51 -> 160.4179688 | F58: ='Weeks 1-4 (Single Factor)'!H51 -> 164.53125 | G58: ='Weeks 1-4 (Single Factor)'!J51 -> 168.75 | H58: ='Weeks 5-9 (Single Factor)'!D46 -> 172.96875 | I58: ='Weeks 5-9 (Single Factor)'!F46 -> 177.2929687 | J58: ='Weeks 5-9 (Single Factor)'!H46 -> 181.725293 | K58: ='Weeks 5-9 (Single Factor)'!J46 -> 186.2684253 | L58: ='Weeks 5-9 (Single Factor)'!L46 -> 190.9251359 | N58: 156.4075195 | O58: 160.4179688 | P58: 164.53125 | Q58: 168.75 | R58: 172.96875 | S58: 177.2929687 | T58: 181.725293 | U58: 186.2684253 | V58: 190.9251359
C59: ='Weeks 1-4 (Single Factor)'!C52 -> 5 | D59: ='Weeks 1-4 (Single Factor)'!D52 -> 182.4754395 | E59: ='Weeks 1-4 (Single Factor)'!F52 -> 187.1542969 | F59: ='Weeks 1-4 (Single Factor)'!H52 -> 191.953125 | G59: ='Weeks 1-4 (Single Factor)'!J52 -> 196.875 | H59: ='Weeks 5-9 (Single Factor)'!D47 -> 201.796875 | I59: ='Weeks 5-9 (Single Factor)'!F47 -> 206.8417969 | J59: ='Weeks 5-9 (Single Factor)'!H47 -> 212.0128418 | K59: ='Weeks 5-9 (Single Factor)'!J47 -> 217.3131628 | L59: ='Weeks 5-9 (Single Factor)'!L47 -> 222.7459919 | N59: 182.4754395 | O59: 187.1542969 | P59: 191.953125 | Q59: 196.875 | R59: 201.796875 | S59: 206.8417969 | T59: 212.0128418 | U59: 217.3131628 | V59: 222.7459919
C60: ='Weeks 1-4 (Single Factor)'!C53 -> 3 | D60: ='Weeks 1-4 (Single Factor)'!D53 -> 213.7569434 | E60: ='Weeks 1-4 (Single Factor)'!F53 -> 219.2378906 | F60: ='Weeks 1-4 (Single Factor)'!H53 -> 224.859375 | G60: ='Weeks 1-4 (Single Factor)'!J53 -> 230.625 | H60: ='Weeks 5-9 (Single Factor)'!D48 -> 236.390625 | I60: ='Weeks 5-9 (Single Factor)'!F48 -> 242.3003906 | J60: ='Weeks 5-9 (Single Factor)'!H48 -> 248.3579004 | K60: ='Weeks 5-9 (Single Factor)'!J48 -> 254.5668479 | L60: ='Weeks 5-9 (Single Factor)'!L48 -> 260.9310191 | N60: 213.7569434 | O60: 219.2378906 | P60: 224.859375 | Q60: 230.625 | R60: 236.390625 | S60: 242.3003906 | T60: 248.3579004 | U60: 254.5668479 | V60: 260.9310191
C61: ='Weeks 1-4 (Single Factor)'!C54 -> 8 | D61: ='Weeks 1-4 (Single Factor)'!D54 -> 156.4075195 | E61: ='Weeks 1-4 (Single Factor)'!F54 -> 160.4179688 | F61: ='Weeks 1-4 (Single Factor)'!H54 -> 164.53125 | G61: ='Weeks 1-4 (Single Factor)'!J54 -> 168.75 | H61: ='Weeks 5-9 (Single Factor)'!D49 -> 172.96875 | I61: ='Weeks 5-9 (Single Factor)'!F49 -> 177.2929687 | J61: ='Weeks 5-9 (Single Factor)'!H49 -> 181.725293 | K61: ='Weeks 5-9 (Single Factor)'!J49 -> 186.2684253 | L61: ='Weeks 5-9 (Single Factor)'!L49 -> 190.9251359 | N61: 156.4075195 | O61: 160.4179688 | P61: 164.53125 | Q61: 168.75 | R61: 172.96875 | S61: 177.2929687 | T61: 181.725293 | U61: 186.2684253 | V61: 190.9251359
B62: ='Weeks 1-4 (Single Factor)'!B55 -> Bent Rows | C62: ='Weeks 1-4 (Single Factor)'!C55 -> 5 | D62: ='Weeks 1-4 (Single Factor)'!D55 -> 95.00308594 | E62: ='Weeks 1-4 (Single Factor)'!F55 -> 97.4390625 | F62: ='Weeks 1-4 (Single Factor)'!H55 -> 99.9375 | G62: ='Weeks 1-4 (Single Factor)'!J55 -> 102.5 | H62: ='Weeks 5-9 (Single Factor)'!D50 -> 105.0625 | I62: ='Weeks 5-9 (Single Factor)'!F50 -> 107.6890625 | J62: ='Weeks 5-9 (Single Factor)'!H50 -> 110.3812891 | K62: ='Weeks 5-9 (Single Factor)'!J50 -> 113.1408213 | L62: ='Weeks 5-9 (Single Factor)'!L50 -> 115.9693418 | N62: =IF(D62>($H$6*D$13),D62,0) -> 0 | O62: 0 | P62: 0 | Q62: 0 | R62: 0 | S62: 0 | T62: 0 | U62: 0 | V62: 0
C63: ='Weeks 1-4 (Single Factor)'!C56 -> 5 | D63: ='Weeks 1-4 (Single Factor)'!D56 -> 118.7538574 | E63: ='Weeks 1-4 (Single Factor)'!F56 -> 121.7988281 | F63: ='Weeks 1-4 (Single Factor)'!H56 -> 124.921875 | G63: ='Weeks 1-4 (Single Factor)'!J56 -> 128.125 | H63: ='Weeks 5-9 (Single Factor)'!D51 -> 131.328125 | I63: ='Weeks 5-9 (Single Factor)'!F51 -> 134.6113281 | J63: ='Weeks 5-9 (Single Factor)'!H51 -> 137.9766113 | K63: ='Weeks 5-9 (Single Factor)'!J51 -> 141.4260266 | L63: ='Weeks 5-9 (Single Factor)'!L51 -> 144.9616773 | N63: 0 | O63: 0 | P63: 0 | Q63: 0 | R63: 0 | S63: 0 | T63: 0 | U63: 0 | V63: 0
C64: ='Weeks 1-4 (Single Factor)'!C57 -> 5 | D64: ='Weeks 1-4 (Single Factor)'!D57 -> 142.5046289 | E64: ='Weeks 1-4 (Single Factor)'!F57 -> 146.1585937 | F64: ='Weeks 1-4 (Single Factor)'!H57 -> 149.90625 | G64: ='Weeks 1-4 (Single Factor)'!J57 -> 153.75 | H64: ='Weeks 5-9 (Single Factor)'!D52 -> 157.59375 | I64: ='Weeks 5-9 (Single Factor)'!F52 -> 161.5335937 | J64: ='Weeks 5-9 (Single Factor)'!H52 -> 165.5719336 | K64: ='Weeks 5-9 (Single Factor)'!J52 -> 169.7112319 | L64: ='Weeks 5-9 (Single Factor)'!L52 -> 173.9540127 | N64: 142.5046289 | O64: 146.1585937 | P64: 149.90625 | Q64: 153.75 | R64: 157.59375 | S64: 161.5335937 | T64: 165.5719336 | U64: 169.7112319 | V64: 173.9540127
C65: ='Weeks 1-4 (Single Factor)'!C58 -> 5 | D65: ='Weeks 1-4 (Single Factor)'!D58 -> 166.2554004 | E65: ='Weeks 1-4 (Single Factor)'!F58 -> 170.5183594 | F65: ='Weeks 1-4 (Single Factor)'!H58 -> 174.890625 | G65: ='Weeks 1-4 (Single Factor)'!J58 -> 179.375 | H65: ='Weeks 5-9 (Single Factor)'!D53 -> 183.859375 | I65: ='Weeks 5-9 (Single Factor)'!F53 -> 188.4558594 | J65: ='Weeks 5-9 (Single Factor)'!H53 -> 193.1672559 | K65: ='Weeks 5-9 (Single Factor)'!J53 -> 197.9964373 | L65: ='Weeks 5-9 (Single Factor)'!L53 -> 202.9463482 | N65: 166.2554004 | O65: 170.5183594 | P65: 174.890625 | Q65: 179.375 | R65: 183.859375 | S65: 188.4558594 | T65: 193.1672559 | U65: 197.9964373 | V65: 202.9463482
C66: ='Weeks 1-4 (Single Factor)'!C59 -> 3 | D66: ='Weeks 1-4 (Single Factor)'!D59 -> 194.7563262 | E66: ='Weeks 1-4 (Single Factor)'!F59 -> 199.7500781 | F66: ='Weeks 1-4 (Single Factor)'!H59 -> 204.871875 | G66: ='Weeks 1-4 (Single Factor)'!J59 -> 210.125 | H66: ='Weeks 5-9 (Single Factor)'!D54 -> 215.378125 | I66: ='Weeks 5-9 (Single Factor)'!F54 -> 220.7625781 | J66: ='Weeks 5-9 (Single Factor)'!H54 -> 226.2816426 | K66: ='Weeks 5-9 (Single Factor)'!J54 -> 231.9386836 | L66: ='Weeks 5-9 (Single Factor)'!L54 -> 237.7371507 | N66: 194.7563262 | O66: 199.7500781 | P66: 204.871875 | Q66: 210.125 | R66: 215.378125 | S66: 220.7625781 | T66: 226.2816426 | U66: 231.9386836 | V66: 237.7371507
C67: ='Weeks 1-4 (Single Factor)'!C60 -> 8 | D67: ='Weeks 1-4 (Single Factor)'!D60 -> 142.5046289 | E67: ='Weeks 1-4 (Single Factor)'!F60 -> 146.1585937 | F67: ='Weeks 1-4 (Single Factor)'!H60 -> 149.90625 | G67: ='Weeks 1-4 (Single Factor)'!J60 -> 153.75 | H67: ='Weeks 5-9 (Single Factor)'!D55 -> 157.59375 | I67: ='Weeks 5-9 (Single Factor)'!F55 -> 161.5335937 | J67: ='Weeks 5-9 (Single Factor)'!H55 -> 165.5719336 | K67: ='Weeks 5-9 (Single Factor)'!J55 -> 169.7112319 | L67: ='Weeks 5-9 (Single Factor)'!L55 -> 173.9540127 | N67: 142.5046289 | O67: 146.1585937 | P67: 149.90625 | Q67: 153.75 | R67: 157.59375 | S67: 161.5335937 | T67: 165.5719336 | U67: 169.7112319 | V67: 173.9540127
A69: ='Weeks 1-4 (Single Factor)'!A65 -> Core Exercise Tonnage | C69: ='Weeks 1-4 (Single Factor)'!C65 -> Mon | D69: ='Weeks 1-4 (Single Factor)'!D65 -> 12947.06689 | E69: ='Weeks 1-4 (Single Factor)'!F65 -> 13279.04297 | F69: ='Weeks 1-4 (Single Factor)'!H65 -> 13619.53125 | G69: ='Weeks 1-4 (Single Factor)'!J65 -> 13968.75 | H69: ='Weeks 5-9 (Single Factor)'!D60 -> 14317.96875 | I69: ='Weeks 5-9 (Single Factor)'!F60 -> 14675.91797 | J69: ='Weeks 5-9 (Single Factor)'!H60 -> 15042.81592 | K69: ='Weeks 5-9 (Single Factor)'!J60 -> 15418.88632 | L69: ='Weeks 5-9 (Single Factor)'!L60 -> 15804.35847
A70: ='Weeks 1-4 (Single Factor)'!A66 -> 0 | C70: ='Weeks 1-4 (Single Factor)'!C66 -> Wed | D70: ='Weeks 1-4 (Single Factor)'!D66 -> 11362.71665 | E70: ='Weeks 1-4 (Single Factor)'!F66 -> 11654.06836 | F70: ='Weeks 1-4 (Single Factor)'!H66 -> 11952.89062 | G70: ='Weeks 1-4 (Single Factor)'!J66 -> 12259.375 | H70: ='Weeks 5-9 (Single Factor)'!D61 -> 12565.85938 | I70: ='Weeks 5-9 (Single Factor)'!F61 -> 12880.00586 | J70: ='Weeks 5-9 (Single Factor)'!H61 -> 13202.00601 | K70: ='Weeks 5-9 (Single Factor)'!J61 -> 13532.05616 | L70: ='Weeks 5-9 (Single Factor)'!L61 -> 13870.35756
C71: ='Weeks 1-4 (Single Factor)'!C67 -> Fri | D71: ='Weeks 1-4 (Single Factor)'!D67 -> 15760.8961 | E71: ='Weeks 1-4 (Single Factor)'!F67 -> 16165.02164 | F71: ='Weeks 1-4 (Single Factor)'!H67 -> 16579.50938 | G71: ='Weeks 1-4 (Single Factor)'!J67 -> 17004.625 | H71: ='Weeks 5-9 (Single Factor)'!D62 -> 17429.74062 | I71: ='Weeks 5-9 (Single Factor)'!F62 -> 17865.48414 | J71: ='Weeks 5-9 (Single Factor)'!H62 -> 18312.12124 | K71: ='Weeks 5-9 (Single Factor)'!J62 -> 18769.92428 | L71: ='Weeks 5-9 (Single Factor)'!L62 -> 19239.17238
A73: Relevant Tonnage | C73: Monday | D73: =SUMPRODUCT($C$19:$C$33,N19:N33) -> 9062.946826 | E73: 9295.330078 | F73: 9533.671875 | G73: 9778.125 | H73: 10022.57812 | I73: 10273.14258 | J73: 10529.97114 | K73: 10793.22042 | L73: 11063.05093
C74: Wednesday | D74: =SUMPRODUCT($C$36:$C$47,N36:N47) -> 8272.219922 | E74: 8484.328125 | F74: 8701.875 | G74: 8925 | H74: 9148.125 | I74: 9376.828125 | J74: 9611.248828 | K74: 9851.530049 | L74: 10097.8183
C75: Friday | D75: =SUMPRODUCT($C$50:$C$67,N50:N67) -> 11876.77603 | E75: =SUMPRODUCT($C$50:$C$67,O50:O67) -> 12181.30875 | F75: 12493.65 | G75: 12814 | H75: 13134.35 | I75: 13462.70875 | J75: 13799.27647 | K75: 14144.25838 | L75: 14497.86484
